bitfinex/quotes_ETHUSD_20250524
["timestamp","ask_amount","ask_price","bid_price","bid_amount"]
[1748118008921,3.039599,2545.8,2545.5,0.55]
[1748118009229,3.039599,2545.8,2545.6,21.011]
[1748118009525,3.039599,2545.8,2545.6,14.429]
[1748118009902,3.039599,2545.8,2545.5,0.55]
[1748118010221,3.039599,2545.8,2545.6,11.754]
[1748118010817,3.039599,2545.8,2545.4,1.5611695]
[1748118011111,3.039599,2545.8,2545.5,11.754]
[1748118011614,1.57554542,2545.7,2545.5,12.36693794]
[1748118011915,1.57554542,2545.7,2545.5,0.61293794]
[1748118012077,1.57554542,2545.7,2545.6,11.754]
[1748118013124,2.40134542,2545.7,2545.5,0.61293794]
[1748118013282,2.40134542,2545.7,2545.6,11.754]
[1748118013617,2.40134542,2545.7,2545.5,0.61293794]
[1748118013800,2.40134542,2545.7,2545.6,11.754]
[1748118017724,0.7533,2545.6,2545.2,1.2524627]
[1748118017886,0.7533,2545.4,2545.2,1.2524627]
[1748118018221,0.7533,2545.4,2545.3,11.755]
[1748118018525,0.7533,2545.4,2545.3,12.22447284]
[1748118018834,0.7533,2545.4,2545.3,12.59083463]
[1748118019207,0.7533,2545.4,2545.3,50.54983463]
[1748118019520,0.7533,2545.4,2545.3,50.08036179]
[1748118019712,0.7533,2545.4,2545.3,26.57036179]
[1748118020239,6.2763087,2545.4,2545.3,26.57036179]
[1748118020435,0.7533,2545.3,2544.9,0.62481476]
[1748118021501,0.7533,2545.3,2544.8,0.62481476]
[1748118021703,0.7533,2545.3,2545.0,11.756]
[1748118022831,0.7533,2545.3,2544.1,1.3024627]
[1748118023438,0.7533,2545.3,2544.1,1.68488677]
[1748118023857,6.82428722,2545.2,2544.2,11.757]
[1748118024843,6.82428722,2545.2,2544.1,0.37216057]
[1748118025143,0.7598,2545.1,2544.0,0.55]
[1748118026116,0.7598,2545.1,2544.1,11.757]
[1748118026317,4.43033155,2545.1,2544.1,11.757]
[1748118027654,4.43033155,2545.1,2544.0,0.55]
[1748118027968,4.43033155,2545.1,2544.1,11.758]
[1748118028283,3.67053155,2545.1,2544.2,0.93156878]
[1748118028421,3.67053155,2545.1,2544.3,0.0196684]
[1748118028776,3.67053155,2545.0,2544.5,0.55]
[1748118029231,3.67053155,2545.0,2544.6,14.453]
[1748118030659,1.96941365,2544.7,2544.6,15.003]
[1748118030844,1.57308495,2544.9,2544.6,0.55]
[1748118031221,1.57308495,2544.9,2544.7,0.55]
[1748118032528,1.57308495,2544.8,2544.7,0.55]
[1748118032766,0.7598,2545.6,2544.7,0.55]
[1748118034126,0.7598,2545.6,2544.5,0.55]
[1748118034956,0.7598,2545.6,2544.5,27.744]
[1748118035131,0.7598,2545.6,2544.8,0.55]
[1748118035876,2.09416341,2545.5,2544.8,0.55]
[1748118036239,2.09416341,2545.5,2544.8,1.79663455]
[1748118037586,2.09416341,2545.4,2544.8,1.79663455]
[1748118039285,2.09416341,2545.4,2544.9,37.967]
[1748118039583,2.09416341,2545.4,2544.9,14.452]
[1748118039788,2.09416341,2545.4,2544.8,1.79663455]
[1748118040084,0.7598,2545.6,2544.8,1.79663455]
[1748118040247,0.7598,2545.6,2544.9,1.24663455]
[1748118041799,2.09425225,2545.5,2544.9,1.24663455]
[1748118042501,2.09425225,2545.5,2544.8,0.55]
[1748118044399,2.09425225,2545.4,2544.8,0.55]
[1748118045099,2.09425225,2545.4,2544.6,26.43170965]
[1748118046306,0.7598,2545.6,2544.6,26.43170965]
[1748118047023,0.7598,2545.6,2544.7,0.55]
[1748118049029,3.66578103,2545.5,2544.7,0.55]
[1748118049207,3.66578103,2545.5,2544.8,21.06]
[1748118049410,3.66578103,2545.5,2544.8,14.476]
[1748118049615,3.66578103,2545.5,2544.7,0.55]
[1748118051991,3.66578103,2545.4,2544.7,0.55]
[1748118053694,3.66578103,2545.4,2545.0,1.25025621]
[1748118054034,3.66578103,2545.4,2545.1,11.756]
[1748118054387,3.66578103,2545.3,2545.1,11.756]
[1748118056195,3.02899565,2545.3,2545.1,11.756]
[1748118057544,0.7598,2545.6,2545.1,11.756]
[1748118057731,0.7598,2545.6,2545.1,13.00625621]
[1748118058367,0.7598,2545.6,2544.7,0.55]
[1748118059128,0.7598,2545.6,2544.8,37.988]
[1748118059330,0.7598,2545.6,2544.8,14.476]
[1748118059531,0.7598,2545.6,2544.9,11.756]
[1748118059774,2.09763479,2545.5,2544.9,11.756]
[1748118061954,2.09763479,2545.4,2544.9,11.756]
[1748118062667,2.09763479,2545.4,2545.0,0.36723041]
[1748118063263,2.09763479,2545.4,2545.1,0.36723041]
[1748118063641,2.09763479,2545.4,2545.2,0.36723041]
[1748118064170,0.33766242,2545.3,2544.7,2.1111695]
[1748118064337,0.33766242,2545.3,2544.8,11.756]
[1748118064541,0.33766242,2545.3,2544.9,0.36734592]
[1748118064976,2.43529721,2545.3,2545.0,0.36734592]
[1748118065377,2.43529721,2545.3,2545.1,0.36734219]
[1748118065565,2.43529721,2545.3,2544.7,1.16622197]
[1748118066579,2.43529721,2545.3,2544.8,11.756]
[1748118066747,1.79851278,2545.2,2544.8,11.8835]
[1748118068991,3.15375567,2545.7,2544.8,11.8835]
[1748118069196,3.15375567,2545.7,2544.9,14.476]
[1748118069790,0.8328,2545.6,2545.2,1.25381249]
[1748118071582,0.8328,2545.6,2545.3,0.01965187]
[1748118071782,0.8328,2545.6,2545.2,1.25381249]
[1748118072187,0.8328,2545.6,2545.5,1.25381249]
[1748118072500,0.8328,2545.6,2545.5,1.4740879]
[1748118072711,0.46546453,2545.6,2545.5,1.4740879]
[1748118073095,0.46546453,2545.6,2545.5,21.2300879]
[1748118073688,0.46546453,2545.6,2545.5,6.53318746]
[1748118074475,2.04419835,2545.6,2545.5,6.53318746]
[1748118074876,2.04419835,2545.6,2545.5,18.28918746]
[1748118076620,2.04419835,2545.6,2545.5,6.53318746]
[1748118076822,0.8055,2545.5,2545.3,1.25381249]
[1748118077182,0.8055,2545.5,2545.4,11.756]
[1748118077533,0.8055,2545.5,2545.4,12.1230684]
[1748118078220,0.8055,2545.5,2545.4,20.1230684]
[1748118079319,0.8055,2545.5,2545.4,58.0690684]
[1748118080423,8.23699616,2545.5,2545.4,58.0690684]
[1748118081124,8.23699616,2545.5,2545.4,34.5570684]
[1748118082323,4.49191131,2545.5,2545.4,34.5570684]
[1748118083182,4.49191131,2545.5,2545.4,20.1230684]
[1748118083390,3.68641131,2545.5,2545.4,20.1230684]
[1748118087337,3.68641131,2545.5,2545.4,7.05481677]
[1748118088537,3.68641131,2545.5,2545.4,18.81181677]
[1748118089105,3.68641131,2545.5,2545.4,56.75781677]
[1748118089641,3.68641131,2545.5,2545.4,55.07061514]
[1748118090044,3.68641131,2545.5,2545.4,17.12461514]
[1748118095270,3.68641131,2545.5,2545.4,5.36761514]
[1748118095427,3.68641131,2545.5,2545.4,17.12361514]
[1748118096061,3.68641131,2545.5,2545.4,18.96997505]
[1748118097769,3.68641131,2545.5,2545.4,7.21397505]
[1748118098066,3.68641131,2545.5,2545.4,18.96997505]
[1748118099177,3.68641131,2545.5,2545.4,56.91597505]
[1748118100076,3.68641131,2545.5,2545.4,33.40397505]
[1748118101053,3.68641131,2545.5,2545.4,33.7707538]
[1748118101249,3.68641131,2545.5,2545.4,19.3367538]
[1748118105590,3.68641131,2545.5,2545.4,17.64955144]
[1748118106886,3.68641131,2545.5,2545.4,13.9692393]
[1748118107427,3.68641131,2545.5,2545.4,21.9692393]
[1748118107822,3.68641131,2545.5,2545.4,20.6569826]
[1748118108986,3.68641131,2545.5,2545.4,20.29010321]
[1748118109192,3.68641131,2545.5,2545.4,58.23610321]
[1748118110016,3.68641131,2545.5,2545.4,34.72410321]
[1748118110512,3.68641131,2545.5,2545.4,20.29010321]
[1748118112123,3.16982961,2545.7,2545.5,8.0]
[1748118112328,3.16982961,2545.7,2545.6,1.84635991]
[1748118112852,2.53314983,2545.7,2545.6,1.84635991]
[1748118115097,0.05,2545.9,2545.6,1.84635991]
[1748118115401,0.05,2545.9,2545.8,1.84635991]
[1748118119153,0.05,2545.9,2545.8,47.79035991]
[1748118121736,0.8803,2545.9,2545.8,9.84635991]
[1748118121938,0.8803,2545.9,2545.8,21.60135991]
[1748118122934,0.8803,2545.9,2545.8,19.91438911]
[1748118123113,0.8803,2545.9,2545.8,21.60135991]
[1748118123940,0.8803,2545.9,2545.8,9.84635991]
[1748118124151,0.8803,2545.9,2545.8,21.60135991]
[1748118124638,2.98447944,2545.9,2545.8,9.84635991]
[1748118125019,2.98447944,2545.9,2545.8,21.60135991]
[1748118125219,2.98447944,2545.9,2545.8,9.84635991]
[1748118125442,2.98447944,2545.9,2545.8,8.0]
[1748118125643,0.8303,2545.8,2545.4,1.84635991]
[1748118125963,0.8303,2545.8,2545.6,1.84635991]
[1748118126156,0.8303,2545.8,2545.6,9.84635991]
[1748118126535,0.8303,2545.8,2545.7,0.62568918]
[1748118127485,1.13759274,2545.8,2545.7,0.62568918]
[1748118127700,1.13759274,2545.8,2545.7,20.38068918]
[1748118127894,1.13759274,2545.8,2545.7,19.755]
[1748118128392,0.8093,2545.8,2545.7,11.755]
[1748118129214,0.8093,2545.8,2545.7,58.16825461]
[1748118129866,8.23708959,2545.8,2545.7,58.16825461]
[1748118130032,8.23708959,2545.8,2545.7,37.95318708]
[1748118131369,8.23708959,2545.8,2545.7,49.70918708]
[1748118131571,8.23708959,2545.8,2545.7,18.34818708]
[1748118132596,8.23708959,2545.8,2545.7,17.03579167]
[1748118134192,4.49200474,2545.8,2545.7,17.03579167]
[1748118137257,4.49200474,2545.8,2545.7,16.56653706]
[1748118139176,4.49200474,2545.8,2545.7,49.702]
[1748118139470,4.49200474,2545.8,2545.7,26.189]
[1748118139898,3.68270474,2545.8,2545.7,26.189]
[1748118140303,3.68270474,2545.8,2545.7,11.756]
[1748118141195,3.68270474,2545.8,2545.7,19.756]
[1748118143866,3.68270474,2545.8,2545.7,20.2509]
[1748118144070,3.68270474,2545.8,2545.7,22.09725991]
[1748118144279,3.68270474,2545.8,2545.7,22.47882869]
[1748118144486,3.04610489,2545.8,2545.7,22.09725991]
[1748118145988,3.04610489,2545.8,2545.7,23.3510724]
[1748118146192,0.05,2545.9,2545.7,15.3510724]
[1748118146386,0.05,2545.9,2545.8,2.34125991]
[1748118147934,0.05,2545.9,2545.8,10.34125991]
[1748118149207,0.05,2545.9,2545.8,48.28025991]
[1748118149896,0.05,2545.9,2545.8,24.77225991]
[1748118150729,0.05,2545.9,2545.8,10.34125991]
[1748118153806,0.05,2545.9,2545.8,8.4949]
[1748118154105,0.05,2545.9,2545.8,10.34125991]
[1748118159221,0.05,2545.9,2545.8,24.77025991]
[1748118159730,0.05,2545.9,2545.8,10.34125991]
[1748118160851,2.56931366,2546.7,2545.9,0.4949]
[1748118161046,2.56931366,2546.7,2546.6,1.84635991]
[1748118161250,2.56931366,2546.7,2546.6,21.59935991]
[1748118162041,2.56931366,2546.8,2546.7,8.0]
[1748118162865,2.56931366,2546.8,2546.7,8.62328959]
[1748118163864,2.56931366,2546.8,2546.7,8.0]
[1748118165670,1.57165039,2546.8,2546.7,8.0]
[1748118166628,1.57165039,2546.8,2546.7,6.31367423]
[1748118168053,1.57165039,2546.8,2546.7,6.53287749]
[1748118168258,2.36275039,2546.8,2546.7,0.21920326]
[1748118168567,2.36275039,2546.8,2546.7,21.81656317]
[1748118169184,2.36275039,2546.8,2546.7,59.74456317]
[1748118170878,2.36275039,2546.8,2546.7,36.24256317]
[1748118171677,2.14244244,2546.8,2546.7,21.81656317]
[1748118172173,2.14244244,2546.8,2546.7,21.59735991]
[1748118174169,1.35134244,2546.8,2546.7,21.59735991]
[1748118175142,1.35134244,2546.8,2546.7,20.28575785]
[1748118179403,1.35134244,2546.8,2546.7,58.20975785]
[1748118179584,1.35134244,2546.8,2546.7,34.70975785]
[1748118181600,1.35134244,2546.8,2546.7,34.70875785]
[1748118182541,1.35134244,2546.8,2546.7,34.86890763]
[1748118183501,1.35134244,2546.8,2546.7,20.44490763]
[1748118185846,1.35134244,2546.8,2546.7,18.59854772]
[1748118186013,1.35134244,2546.8,2546.7,6.84854772]
[1748118186195,1.35134244,2546.8,2546.7,18.59854772]
[1748118188453,1.35134244,2546.8,2546.7,18.59854772]
[1748118189164,1.35134244,2546.8,2546.7,56.52254772]
[1748118190372,1.35134244,2546.8,2546.7,6.84854772]
[1748118190578,1.35134244,2546.8,2546.7,18.59854772]
[1748118191539,1.35134244,2546.8,2546.7,6.84854772]
[1748118191738,1.35134244,2546.8,2546.7,18.59854772]
[1748118192582,1.35134244,2546.8,2546.7,6.84854772]
[1748118192769,1.35134244,2546.8,2546.7,18.59854772]
[1748118193469,1.35134244,2546.8,2546.7,6.84854772]
[1748118193704,1.35134244,2546.8,2546.7,18.59854772]
[1748118195480,1.35134244,2546.8,2546.7,17.28702236]
[1748118195655,1.35134244,2546.8,2546.7,17.28602236]
[1748118196295,3.45377365,2546.8,2546.7,17.28602236]
[1748118197405,3.45377365,2546.8,2546.7,5.53702236]
[1748118197777,3.45377365,2546.8,2546.7,17.28602236]
[1748118197979,3.45377365,2546.8,2546.7,5.53702236]
[1748118198183,3.45377365,2546.8,2546.7,17.28602236]
[1748118198792,3.45377365,2546.8,2546.7,11.749]
[1748118199104,3.45377365,2546.8,2546.6,1.25381249]
[1748118199307,3.45377365,2546.8,2546.7,32.75]
[1748118199965,3.45377365,2546.8,2546.7,11.749]
[1748118200600,3.45377365,2546.8,2546.7,19.749]
[1748118200799,3.45377365,2546.8,2546.7,8.0]
[1748118200964,3.45377365,2546.8,2546.7,19.749]
[1748118209328,6.02308731,2546.8,2546.7,57.669]
[1748118209729,6.02308731,2546.8,2546.7,34.171]
[1748118213744,6.02308731,2546.8,2546.7,19.749]
[1748118214315,6.02308731,2546.8,2546.7,8.0]
[1748118214517,6.02308731,2546.8,2546.7,19.749]
[1748118214917,5.38673119,2546.8,2546.7,19.749]
[1748118215326,5.38673119,2546.8,2546.7,8.0]
[1748118215531,5.38673119,2546.8,2546.7,19.749]
[1748118216544,5.38673119,2546.8,2546.7,18.43748073]
[1748118216734,5.38673119,2546.8,2546.7,18.80444449]
[1748118217550,5.38673119,2546.8,2546.7,7.05544449]
[1748118217737,5.38673119,2546.8,2546.7,20.05698678]
[1748118218326,2.81741753,2546.8,2546.7,20.05698678]
[1748118219051,2.81741753,2546.8,2546.7,18.80444449]
[1748118219208,2.81741753,2546.8,2546.7,56.72344449]
[1748118219755,2.81741753,2546.8,2546.7,33.22544449]
[1748118220652,5.38673119,2546.8,2546.7,33.22544449]
[1748118221659,5.38673119,2546.8,2546.7,18.80444212]
[1748118222218,4.77408539,2546.8,2546.7,18.80444212]
[1748118225789,0.10234052,2546.8,2546.7,18.80444212]
[1748118226825,0.10234052,2546.8,2546.7,20.05627671]
[1748118228966,0.0269144,2546.8,2546.7,20.05627671]
[1748118229167,0.0269144,2546.8,2546.7,57.97427671]
[1748118231471,0.0269144,2546.8,2546.7,56.72244212]
[1748118231671,0.0269144,2546.8,2546.7,18.80444212]
[1748118234567,0.0269144,2546.8,2546.7,19.84934212]
[1748118235450,0.05,2546.9,2546.8,8.4949]
[1748118235877,0.05,2546.9,2546.8,8.86186139]
[1748118239392,0.01405712,2546.9,2546.8,46.77386139]
[1748118240492,0.01405712,2546.9,2546.8,8.86186139]
[1748118241259,0.01405712,2546.9,2546.8,7.55063606]
[1748118242190,0.01405712,2546.9,2546.8,7.05573606]
[1748118242396,0.01405712,2546.9,2546.8,7.55063606]
[1748118243600,2.56931366,2547.5,2546.8,7.05573606]
[1748118243764,2.56931366,2547.5,2546.9,0.86186139]
[1748118244599,2.56931366,2547.5,2547.1,1.25040269]
[1748118245288,2.56931366,2547.5,2547.2,0.36696139]
[1748118245503,2.56931366,2547.5,2547.4,0.4949]
[1748118245824,2.56931366,2547.5,2547.4,20.56959985]
[1748118246161,2.56931366,2547.5,2547.4,20.93656124]
[1748118248008,2.56931366,2547.5,2547.4,22.18515781]
[1748118248300,0.05,2547.9,2547.4,22.18515781]
[1748118248301,0.05,2547.9,2547.4,2.43815781]
[1748118248506,0.05,2547.9,2547.5,12.07368699]
[1748118248800,0.05,2547.9,2547.6,0.32767412]
[1748118249185,0.05,2547.9,2547.7,37.908]
[1748118249480,0.05,2547.9,2547.7,38.60262265]
[1748118249674,0.05,2547.9,2547.8,0.36696139]
[1748118250780,0.05,2547.9,2547.8,8.36696139]
[1748118254307,1.62338212,2547.9,2547.8,8.36696139]
[1748118254812,2.68834033,2547.9,2547.8,12.11196139]
[1748118255880,0.7564,2547.8,2547.1,1.24859657]
[1748118256888,0.7564,2547.8,2547.0,1.24859657]
[1748118257131,0.7564,2547.8,2547.1,11.745]
[1748118259080,1.97217538,2547.3,2547.2,8.0]
[1748118259281,1.97217538,2547.3,2547.2,22.414]
[1748118260318,1.97217538,2547.3,2547.0,1.24859657]
[1748118260601,1.97217538,2547.3,2547.1,11.745]
[1748118260807,1.97217538,2547.3,2547.2,8.0]
[1748118261019,3.5455575,2547.3,2547.2,8.0]
[1748118261223,3.5455575,2547.3,2547.2,9.84364498]
[1748118261378,3.5455575,2547.3,2547.2,8.53248314]
[1748118262627,1.57338212,2547.3,2547.2,8.53248314]
[1748118266605,3.5466009,2547.3,2547.2,8.53248314]
[1748118269133,3.5466009,2547.3,2547.2,46.46048314]
[1748118270017,3.5466009,2547.3,2547.2,47.70907971]
[1748118271216,3.5466009,2547.3,2547.2,46.46048314]
[1748118272363,3.5466009,2547.3,2547.2,8.53248314]
[1748118273260,1.57338212,2547.3,2547.2,8.53248314]
[1748118275134,0.93717637,2547.3,2547.2,8.53248314]
[1748118275767,0.93717637,2547.3,2547.2,9.78107971]
[1748118277163,0.93717637,2547.3,2547.2,20.27848314]
[1748118279172,0.93717637,2547.3,2547.2,58.20648314]
[1748118280278,0.93717637,2547.3,2547.2,34.71548314]
[1748118281474,0.93717637,2547.3,2547.2,33.40431885]
[1748118282078,0.93717637,2547.3,2547.2,18.96731885]
[1748118283428,0.93717637,2547.3,2547.2,7.22131885]
[1748118283632,0.93717637,2547.3,2547.2,18.96731885]
[1748118283845,0.93717637,2547.3,2547.2,7.22131885]
[1748118284043,0.93717637,2547.3,2547.2,18.96731885]
[1748118285280,0.93717637,2547.3,2547.2,7.22131885]
[1748118285440,0.93717637,2547.3,2547.2,18.96731885]
[1748118287451,0.93717637,2547.3,2547.2,7.22131885]
[1748118287775,0.93717637,2547.3,2547.2,18.96731885]
[1748118287987,0.7934,2547.2,2547.1,1.24859657]
[1748118288142,0.7934,2547.2,2547.1,14.83824155]
[1748118288537,0.7934,2547.2,2547.1,21.58964498]
[1748118289175,0.7934,2547.2,2547.1,59.52064498]
[1748118289577,0.7934,2547.2,2547.1,47.77464498]
[1748118289874,0.7934,2547.2,2547.1,59.52164498]
[1748118290683,3.83113437,2547.2,2547.1,59.52164498]
[1748118290980,3.83113437,2547.2,2547.1,34.3425667]
[1748118291371,3.83113437,2547.2,2547.1,19.9045667]
[1748118295388,1.73057637,2547.2,2547.1,19.9045667]
[1748118299270,0.93717637,2547.2,2547.1,34.3405667]
[1748118300593,0.93717637,2547.2,2547.1,34.183]
[1748118301153,0.93717637,2547.2,2547.1,19.747]
[1748118302240,0.93717637,2547.2,2547.1,18.4356931]
[1748118302907,0.93717637,2547.2,2547.1,6.6886931]
[1748118303067,1.74317637,2547.2,2547.1,18.4366931]
[1748118303656,1.74317637,2547.2,2547.1,6.6886931]
[1748118303856,0.806,2547.1,2546.9,5.0]
[1748118304370,0.806,2547.1,2547.0,19.748]
[1748118304562,0.806,2547.1,2547.0,20.21662631]
[1748118305187,1.44729596,2547.1,2547.0,8.46862631]
[1748118305506,1.44729596,2547.1,2547.0,11.748]
[1748118306205,3.67894187,2547.1,2547.0,11.748]
[1748118306405,3.03764591,2547.1,2547.0,11.748]
[1748118306692,3.84364591,2547.1,2547.0,6.31359572]
[1748118307892,3.84364591,2547.1,2547.0,18.06159572]
[1748118309117,3.84364591,2547.1,2547.0,41.55959572]
[1748118309322,6.40867116,2547.1,2547.0,55.99759572]
[1748118309720,6.40867116,2547.1,2547.0,32.49959572]
[1748118310021,7.04953828,2547.1,2547.0,18.06159572]
[1748118310185,7.04953828,2547.1,2547.0,18.06259572]
[1748118311122,7.04953828,2547.1,2547.0,11.749]
[1748118319178,7.04953828,2547.1,2547.0,49.688]
[1748118319515,4.48451303,2547.1,2547.0,49.688]
[1748118321568,4.48451303,2547.1,2547.0,11.749]
[1748118322345,4.48451303,2547.1,2546.8,0.62584933]
[1748118322545,0.70495383,2547.0,2546.8,0.62584933]
[1748118323458,0.70495383,2547.0,2546.9,11.75]
[1748118324521,0.70495383,2547.0,2546.8,1.84364498]
[1748118325925,0.70495383,2547.0,2546.9,11.75]
[1748118327480,0.806,2547.1,2546.9,11.75]
[1748118329186,0.806,2547.1,2547.0,37.926]
[1748118329544,2.75831494,2547.1,2547.0,14.425]
[1748118331778,2.75831494,2547.1,2546.9,11.75]
[1748118331948,2.75831494,2547.1,2546.8,1.84364498]
[1748118332165,6.23285216,2547.1,2546.6,1.84364498]
[1748118332382,6.23285216,2547.1,2546.7,11.75]
[1748118332699,0.7677,2547.0,2546.7,11.75]
[1748118333082,0.7677,2547.0,2546.8,11.75]
[1748118334108,0.7677,2547.0,2546.6,1.84364498]
[1748118334297,0.7677,2547.0,2546.9,11.75]
[1748118335499,4.43781232,2547.0,2546.6,1.84364498]
[1748118335805,4.43781232,2547.0,2546.7,11.751]
[1748118337820,2.56291225,2546.8,2546.7,11.751]
[1748118338002,2.56291225,2546.8,2546.6,1.84364498]
[1748118338211,2.56291225,2546.8,2546.7,11.751]
[1748118338637,2.56291225,2546.8,2546.6,0.15702655]
[1748118339327,2.56291225,2546.8,2546.7,37.927]
[1748118339538,6.23302457,2546.8,2546.6,0.15702655]
[1748118339867,6.23302457,2546.8,2546.7,11.751]
[1748118342037,6.23302457,2546.8,2546.6,0.15702655]
[1748118342183,6.23302457,2546.8,2546.7,11.751]
[1748118343649,2.56291225,2546.8,2546.7,11.751]
[1748118345599,6.23122578,2546.8,2546.7,12.5102]
[1748118345831,6.23122578,2546.8,2546.7,13.98581071]
[1748118345992,6.23122578,2546.8,2546.7,0.92304492]
[1748118347128,6.23122578,2546.8,2546.7,12.67404492]
[1748118347635,6.23122578,2546.8,2546.7,11.751]
[1748118347802,6.23122578,2546.8,2546.7,13.59558093]
[1748118348137,1.57213437,2546.8,2546.7,13.59558093]
[1748118349119,1.57213437,2546.8,2546.7,51.52158093]
[1748118351449,3.67027175,2546.8,2546.7,51.52158093]
[1748118352252,3.67027175,2546.8,2546.7,13.59558093]
[1748118354059,3.67027175,2546.8,2546.7,1.84458093]
[1748118354222,3.67027175,2546.8,2546.7,13.59458093]
[1748118354420,3.67027175,2546.8,2546.7,11.90822127]
[1748118355456,3.67027175,2546.8,2546.2,1.45276872]
[1748118355457,3.67027175,2546.8,2546.5,1.84458093]
[1748118355627,4.36911015,2546.8,2546.6,11.75]
[1748118355827,4.36911015,2546.8,2546.7,11.75]
[1748118356535,3.67027175,2546.8,2546.7,11.75]
[1748118357124,3.67027175,2546.8,2546.7,13.59458093]
[1748118359179,3.67027175,2546.8,2546.7,51.51558093]
[1748118359680,4.49227175,2546.8,2546.7,23.501]
[1748118359849,4.49227175,2546.8,2546.7,49.672]
[1748118361674,4.49227175,2546.8,2546.7,26.171]
[1748118362950,4.49227175,2546.8,2546.7,28.01558093]
[1748118363880,4.49227175,2546.8,2546.7,13.59558093]
[1748118366278,4.49227175,2546.8,2546.7,0.53281657]
[1748118367581,4.94640768,2546.8,2546.7,12.28381657]
[1748118369139,4.94640768,2546.8,2546.7,49.673]
[1748118369337,4.49227175,2546.8,2546.7,49.673]
[1748118369682,4.49227175,2546.8,2546.7,34.171]
[1748118370264,4.49227175,2546.8,2546.7,6.31343749]
[1748118370469,4.49227175,2546.8,2546.5,2.4703366]
[1748118371347,4.49227175,2546.8,2546.6,11.751]
[1748118371549,0.44922718,2546.7,2546.6,11.751]
[1748118372154,0.44922718,2546.7,2546.6,19.751]
[1748118372496,0.44922718,2546.7,2546.5,2.4703366]
[1748118372497,0.8055,2546.6,2546.5,0.62575567]
[1748118372670,0.8055,2546.6,2546.5,12.37675567]
[1748118373979,0.8055,2546.6,2546.5,11.751]
[1748118374251,1.90999989,2546.6,2546.1,9.84458093]
[1748118374479,0.8055,2546.4,2546.2,11.751]
[1748118375156,0.8055,2546.4,2546.1,9.84458093]
[1748118375157,0.8055,2546.4,2546.3,11.752]
[1748118375683,0.8055,2546.4,2546.3,13.59658093]
[1748118376599,6.12,2546.5,2546.3,13.59658093]
[1748118376797,3.67027175,2546.4,2546.3,13.59658093]
[1748118379203,3.67027175,2546.4,2546.3,51.52358093]
[1748118379896,3.67027175,2546.4,2546.3,28.01858093]
[1748118381071,6.2306873,2546.4,2546.3,28.01858093]
[1748118381713,6.2306873,2546.4,2546.3,13.59658093]
[1748118383686,3.67027175,2546.4,2546.3,13.59658093]
[1748118385073,3.67027175,2546.4,2546.3,14.06508862]
[1748118386189,3.67027175,2546.4,2546.3,0.62622806]
[1748118387618,3.67027175,2546.4,2546.3,20.37922806]
[1748118388120,3.67027175,2546.4,2546.3,20.53647604]
[1748118388616,3.67027175,2546.4,2546.3,9.31612711]
[1748118389030,3.67027175,2546.4,2546.3,8.69037144]
[1748118389331,3.67027175,2546.4,2546.3,46.61637144]
[1748118390038,3.67027175,2546.4,2546.3,58.36937144]
[1748118390198,1.57213437,2546.4,2546.3,58.36937144]
[1748118391730,1.57213437,2546.4,2546.3,20.44337144]
[1748118391937,1.57213437,2546.4,2546.3,20.79177144]
[1748118399153,1.57213437,2546.4,2546.3,58.71577144]
[1748118399864,1.97020574,2546.5,2546.4,8.0]
[1748118400084,1.97020574,2546.5,2546.4,9.84458093]
[1748118400216,1.97020574,2546.5,2546.4,21.59658093]
[1748118401374,1.57096893,2546.5,2546.4,21.59658093]
[1748118405780,3.54104509,2546.5,2546.4,21.59658093]
[1748118409199,3.54104509,2546.5,2546.4,59.51658093]
[1748118410213,3.54104509,2546.5,2546.4,34.70395278]
[1748118410377,3.54104509,2546.5,2546.4,20.28495278]
[1748118412099,3.54104509,2546.5,2546.4,8.53295278]
[1748118412304,3.54104509,2546.5,2546.4,13.59458093]
[1748118413514,3.54104509,2546.5,2546.4,21.59458093]
[1748118419214,1.97007616,2546.6,2546.4,28.01158093]
[1748118419367,1.97007616,2546.6,2546.5,1.84458093]
[1748118419869,1.97007616,2546.6,2546.5,2.19298093]
[1748118422027,1.97007616,2546.7,2546.5,2.19298093]
[1748118422212,1.97007616,2546.7,2546.6,1.84458093]
[1748118422801,1.97007616,2546.7,2546.6,13.59458093]
[1748118423637,1.97007616,2546.7,2546.6,13.22531838]
[1748118424694,1.57183363,2546.7,2546.6,13.22531838]
[1748118425740,1.57183363,2546.7,2546.6,13.59412804]
[1748118425925,0.95918628,2546.7,2546.6,13.94252804]
[1748118427406,1.97168723,2546.8,2546.6,13.94252804]
[1748118429252,1.97168723,2546.8,2546.7,37.914]
[1748118430039,1.97168723,2546.8,2546.7,14.416]
[1748118430205,1.97168723,2546.8,2546.6,15.19112461]
[1748118430406,0.754,2547.4,2546.6,15.19112461]
[1748118430407,1.97168723,2546.9,2546.6,15.19112461]
[1748118430643,1.97168723,2546.9,2546.8,1.84412804]
[1748118431608,1.97168723,2546.9,2546.8,12.03665608]
[1748118432339,1.97168723,2546.9,2546.8,10.19252804]
[1748118433153,1.97168723,2546.9,2546.8,0.88111198]
[1748118435457,1.97168723,2546.9,2546.8,2.19252804]
[1748118436428,1.97168723,2546.9,2546.8,13.94152804]
[1748118436635,1.97168723,2546.9,2546.8,13.94052804]
[1748118439282,1.97168723,2546.9,2546.8,28.35552804]
[1748118442953,3.5445282,2546.9,2546.8,28.00712804]
[1748118443153,3.5445282,2546.9,2546.8,13.59212804]
[1748118447815,3.5445282,2546.9,2546.8,13.22312711]
[1748118449213,3.5445282,2546.9,2546.8,51.13112711]
[1748118449811,3.5445282,2546.9,2546.8,52.60625422]
[1748118451310,3.5445282,2546.9,2546.8,14.69825422]
[1748118452306,1.97168723,2547.0,2546.8,14.69825422]
[1748118454713,1.97168723,2547.0,2546.8,2.95025422]
[1748118455019,1.97168723,2547.0,2546.9,11.748]
[1748118456812,1.57336645,2547.0,2546.9,11.748]
[1748118457834,1.57336645,2547.0,2546.8,2.95025422]
[1748118459020,1.57336645,2547.0,2546.9,11.748]
[1748118459191,1.57336645,2547.0,2546.9,49.655]
[1748118461823,1.57336645,2547.0,2546.8,4.19885079]
[1748118461998,1.57336645,2547.0,2546.9,11.748]
[1748118467285,1.57336645,2547.0,2546.9,13.57152711]
[1748118468116,0.93707589,2547.0,2546.9,13.57152711]
[1748118469126,0.93707589,2547.0,2546.9,51.47852711]
[1748118469331,0.93707589,2547.0,2546.9,52.72712368]
[1748118470534,0.93707589,2547.0,2546.9,29.23212368]